bitfinex-derivatives/quotes_SOLF0:USTF0_20241211
["timestamp","ask_amount","ask_price","bid_price","bid_amount"]
[1733942407846,2.1846,228.65,228.61,5.46492618]
[1733942408043,2.1846,228.65,228.6,7.30835176]
[1733942408242,2.1847,228.64,228.61,5.46494754]
[1733942408442,2.1847,228.64,228.6,7.30835176]
[1733942408837,2.1849,228.63,228.6,5.12325176]
[1733942409245,2.1849,228.63,228.61,5.46507429]
[1733942409446,2.1849,228.63,228.6,5.12325176]
[1733942409639,2.1849,228.63,228.61,5.46506457]
[1733942409842,2.32,228.67,228.53,10.1115831]
[1733942410042,2.32,228.67,228.54,5.4655311]
[1733942410239,2.32,228.67,228.55,5.4655311]
[1733942410544,10.1115831,228.63,228.56,5.4655311]
[1733942410740,2.26,228.62,228.57,5.4655311]
[1733942410947,2.26,228.62,228.51,2.1859]
[1733942411146,3.6501,228.62,228.52,5.46599923]
[1733942411345,2.1855,228.56,228.53,5.46599923]
[1733942411543,2.1855,228.56,228.54,5.46599923]
[1733942411745,2.1855,228.56,228.51,2.1859]
[1733942411944,2.1855,228.56,228.52,5.4666825]
[1733942412249,2.1855,228.56,228.53,5.4666825]
[1733942412548,2.1855,228.56,228.54,5.4666825]
[1733942412844,2.1855,228.56,228.51,2.1859]
[1733942413050,2.1855,228.56,228.52,5.46673959]
[1733942413345,2.1855,228.56,228.53,5.46673959]
[1733942413544,2.1855,228.56,228.51,2.1859]
[1733942413545,2.1855,228.56,228.54,5.46673959]
[1733942413749,2.1855,228.56,228.51,2.1859]
[1733942414045,2.1855,228.56,228.52,5.46688006]
[1733942414245,2.1855,228.56,228.53,5.46688006]
[1733942414449,2.1855,228.56,228.51,2.1859]
[1733942414649,2.1855,228.56,228.52,5.46690117]
[1733942414953,2.1855,228.56,228.51,2.1859]
[1733942415145,2.1855,228.56,228.52,5.46711466]
[1733942415344,2.1855,228.56,228.51,2.1859]
[1733942415546,2.1859,228.52,228.48,5.21598168]
[1733942415748,2.1859,228.52,228.49,5.46716728]
[1733942415945,2.1859,228.52,228.5,5.46716728]
[1733942416149,2.1859,228.52,228.48,5.21598168]
[1733942416445,2.1859,228.52,228.49,5.46741448]
[1733942416647,3.628,228.56,228.45,2.1865]
[1733942416851,3.628,228.56,228.46,5.46794954]
[1733942417052,10.1115831,228.54,228.47,5.46794954]
[1733942417243,10.1115831,228.54,228.41,10.1115831]
[1733942417550,1.3605,228.53,228.43,5.14041324]
[1733942417944,1.3605,228.53,228.44,5.46822333]
[1733942418145,1.3605,228.53,228.45,5.46822333]
[1733942418354,1.3605,228.53,228.46,5.46822333]
[1733942418551,1.3605,228.53,228.47,5.46822333]
[1733942418943,1.3605,228.53,228.43,5.14041324]
[1733942419148,10.1115831,228.51,228.44,5.46783217]
[1733942419450,2.26,228.5,228.37,2.7761]
[1733942419647,2.26,228.5,228.4,2.1869]
[1733942419648,2.1866,228.45,228.4,2.1869]
[1733942419848,2.1866,228.45,228.41,5.4687113]
[1733942420155,2.1866,228.45,228.42,5.4687113]
[1733942420355,2.1866,228.45,228.41,5.31026877]
[1733942420544,2.26,228.45,228.42,5.46908549]
[1733942420851,2.26,228.45,228.34,37.57230363]
[1733942421150,2.26,228.45,228.35,5.46970915]
[1733942421347,2.26,228.45,228.36,5.46970915]
[1733942421544,2.26,228.45,228.37,5.46970915]
[1733942421742,2.1868,228.43,228.38,5.46970915]
[1733942422052,2.1868,228.43,228.39,5.46970915]
[1733942422255,2.1868,228.43,228.37,2.1873]
[1733942422452,2.1868,228.43,228.38,10.61102701]
[1733942422750,2.1868,228.43,228.39,5.46978815]
[1733942422953,2.1868,228.43,228.38,7.32843886]
[1733942423252,2.1868,228.43,228.39,5.46983125]
[1733942423453,2.1868,228.43,228.38,7.32843886]
[1733942423648,2.1868,228.43,228.39,5.46972251]
[1733942423848,2.1868,228.43,228.38,7.32843886]
[1733942424248,2.1868,228.43,228.39,5.46981607]
[1733942424448,2.1868,228.43,228.38,7.32843886]
[1733942424655,1.4014,228.47,228.39,15.58149727]
[1733942424847,1.432,228.52,228.4,5.46991417]
[1733942425050,1.432,228.52,228.41,5.46991417]
[1733942425051,3.692,228.52,228.41,5.46991417]
[1733942425247,3.692,228.52,228.42,5.46991417]
[1733942425446,2.1861,228.5,228.45,2.1865]
[1733942425752,2.1861,228.5,228.39,12.3715831]
[1733942425947,2.1861,228.5,228.44,2.1865]
[1733942426153,3.5463,228.53,228.45,5.4687398]
[1733942426355,2.1858,228.53,228.46,5.4687398]
[1733942426551,3.6744,228.56,228.48,2.1862]
[1733942426755,2.1857,228.54,228.48,2.1862]
[1733942427248,3.6744,228.56,228.45,10.1115831]
[1733942427249,5.86,228.56,228.45,10.1115831]
[1733942427453,3.6744,228.56,228.45,10.1115831]
[1733942428152,2.1856,228.55,228.5,2.186]
[1733942428657,2.1857,228.54,228.5,2.186]
[1733942428851,3.6744,228.56,228.48,2.1862]
[1733942429052,3.6744,228.56,228.49,5.46754529]
[1733942429654,3.6744,228.56,228.5,5.46754529]
[1733942429856,3.6744,228.56,228.51,5.46754529]
[1733942430050,3.6744,228.56,228.45,10.1115831]
[1733942430255,3.6744,228.56,228.46,5.46706064]
[1733942430555,2.1857,228.54,228.5,2.186]
[1733942430747,2.1857,228.54,228.51,5.46706064]
[1733942430947,2.1857,228.54,228.5,2.186]
[1733942431155,2.1857,228.54,228.51,5.46727802]
[1733942431356,2.1857,228.54,228.52,5.46727802]
[1733942431557,2.1857,228.54,228.5,2.186]
[1733942431758,2.1856,228.55,228.51,5.46707022]
[1733942431954,2.1856,228.55,228.52,5.46707022]
[1733942432148,2.1856,228.55,228.53,5.46707022]
[1733942432359,2.1856,228.55,228.5,2.186]
[1733942432559,2.1856,228.55,228.51,5.46705167]
[1733942432758,2.1856,228.55,228.52,5.46705167]
[1733942432963,1.4144,228.56,228.53,5.46705167]
[1733942433158,3.5999,228.56,228.5,2.186]
[1733942433457,3.5999,228.56,228.51,5.46707709]
[1733942433658,3.5999,228.56,228.52,5.46707709]
[1733942434053,3.5999,228.56,228.53,5.46703822]
[1733942434261,3.5999,228.56,228.5,2.186]
[1733942434459,3.5999,228.56,228.51,5.46703556]
[1733942434660,3.5999,228.56,228.52,5.467039]
[1733942434854,3.5999,228.56,228.53,5.467039]
[1733942435160,3.5999,228.56,228.5,2.186]
[1733942435461,3.5999,228.56,228.51,5.46703391]
[1733942435659,3.5999,228.56,228.52,5.46703391]
[1733942435859,3.5999,228.56,228.53,5.46703391]
[1733942436061,3.5999,228.56,228.5,2.186]
[1733942436261,3.5999,228.56,228.51,5.46703299]
[1733942436457,3.5999,228.56,228.52,5.46703299]
[1733942436665,3.5999,228.56,228.5,2.186]
[1733942436854,3.5999,228.56,228.51,5.46702955]
[1733942437053,3.5999,228.56,228.52,5.46702955]
[1733942437256,3.5999,228.56,228.5,2.186]
[1733942437461,3.5999,228.56,228.51,5.46706598]
[1733942437661,3.5999,228.56,228.52,5.46706598]
[1733942437960,3.5999,228.56,228.5,2.186]
[1733942438354,3.5999,228.56,228.51,5.46707556]
[1733942438560,3.5999,228.56,228.52,5.46707556]
[1733942438758,3.5999,228.56,228.5,2.186]
[1733942438956,3.5999,228.56,228.51,5.46705019]
[1733942439162,3.5999,228.56,228.52,5.46705019]
[1733942439359,3.5999,228.56,228.5,2.186]
[1733942439563,3.5999,228.56,228.51,5.46705153]
[1733942439764,3.5999,228.56,228.52,5.46705153]
[1733942439969,2.1856,228.55,228.5,2.186]
[1733942440262,2.1856,228.55,228.52,5.15383242]
[1733942441470,1.4144,228.56,228.46,2.26]
[1733942441861,1.4144,228.56,228.47,5.46712158]
[1733942442162,1.4144,228.56,228.48,5.46712158]
[1733942442367,10.1115831,228.55,228.48,5.46712158]
[1733942442667,2.186,228.51,228.45,2.1865]
[1733942442866,2.26,228.54,228.46,5.46811552]
[1733942443169,2.1862,228.49,228.47,5.46811552]
[1733942443363,2.1862,228.49,228.44,6.47030104]
[1733942443563,2.1862,228.49,228.45,5.46823118]
[1733942443861,6.47030104,228.49,228.46,5.46823118]
[1733942444170,2.1862,228.48,228.42,6.47030104]
[1733942444366,2.1862,228.48,228.43,5.46863453]
[1733942444663,2.1862,228.48,228.44,5.46863453]
[1733942444865,2.1862,228.48,228.45,5.46863453]
[1733942445064,2.1862,228.48,228.43,5.24081316]
[1733942445261,2.1859,228.52,228.44,5.46859695]
[1733942445462,2.26,228.54,228.45,15.5797894]
[1733942445760,2.26,228.54,228.46,5.46859695]
[1733942445964,2.26,228.54,228.47,5.46859695]
[1733942446167,2.26,228.54,228.48,5.46859695]
[1733942446466,1.4144,228.56,228.49,5.46859695]
[1733942446664,4.4452,228.6,228.53,2.1858]
[1733942446964,2.8844,228.61,228.53,2.1858]
[1733942447164,2.26,228.6,228.48,10.11119245]
[1733942447360,2.26,228.6,228.54,2.1857]
[1733942448162,2.26,228.6,228.55,2.1856]
[1733942448760,7.33153092,228.61,228.55,2.1856]
[1733942449069,5.90593092,228.61,228.55,2.1856]
[1733942449665,8.09093092,228.61,228.55,2.1856]
[1733942450662,2.1851,228.6,228.55,2.1856]
[1733942451466,2.1852,228.59,228.54,2.1857]
[1733942451669,2.1852,228.59,228.55,5.46650752]
[1733942451867,2.1852,228.59,228.54,2.1857]
[1733942452169,2.1853,228.58,228.55,5.46649217]
[1733942452366,2.1853,228.58,228.52,2.1858]
[1733942452577,2.1853,228.58,228.53,5.46646109]
[1733942452762,2.1853,228.58,228.54,5.46646109]
[1733942452963,5.90593092,228.61,228.55,5.46646109]
[1733942453163,5.90593092,228.61,228.56,5.46640952]
[1733942453367,5.90593092,228.61,228.53,2.1857]
[1733942453570,5.90593092,228.61,228.54,5.46640952]
[1733942453871,5.90593092,228.61,228.55,5.46640952]
[1733942454069,10.11119245,228.59,228.5,2.186]
[1733942454269,10.11119245,228.59,228.51,5.46689012]
[1733942454468,10.11119245,228.59,228.52,5.46689012]
[1733942454664,2.1855,228.56,228.53,5.46689012]
[1733942454868,2.1855,228.56,228.51,2.186]
[1733942454869,2.1855,228.56,228.54,5.46689012]
[1733942455064,2.1855,228.56,228.51,2.186]
[1733942455363,4.4454,228.57,228.52,7.65275657]
[1733942455566,4.4454,228.57,228.53,5.46695657]
[1733942455772,4.4454,228.57,228.54,5.46695657]
[1733942455973,4.4454,228.57,228.47,10.11119245]
[1733942456174,4.4454,228.57,228.48,5.46692071]
[1733942456374,4.4454,228.57,228.49,5.46692071]
[1733942456574,4.4454,228.57,228.5,5.46692071]
[1733942456771,4.4454,228.57,228.51,5.46692071]
[1733942457074,4.4454,228.57,228.52,5.46692071]
[1733942457264,4.4454,228.57,228.53,5.46692071]
[1733942457469,2.1855,228.56,228.54,5.46692071]
[1733942457664,2.1855,228.56,228.55,5.46692071]
[1733942457871,2.26,228.57,228.55,5.46692071]
[1733942458065,4.4454,228.57,228.47,10.11119245]
[1733942458471,2.26,228.57,228.48,5.46684666]
[1733942458671,2.1856,228.56,228.49,5.46684666]
[1733942458873,2.1856,228.56,228.5,7.65284666]
[1733942459074,2.1856,228.56,228.51,5.46684666]
[1733942459278,2.1856,228.55,228.52,5.46684666]
[1733942459478,2.1856,228.55,228.47,10.11119245]
[1733942459479,2.1856,228.55,228.53,5.46684666]
[1733942459678,2.1856,228.55,228.47,10.11119245]
[1733942459872,2.1856,228.55,228.48,5.46711829]
[1733942460074,2.1856,228.55,228.49,5.46711829]
[1733942460277,2.26,228.57,228.5,5.46711829]
[1733942460474,10.11119245,228.56,228.51,5.46711829]
[1733942460681,10.11119245,228.56,228.52,5.46711829]
[1733942460976,2.1856,228.55,228.53,5.46711695]
[1733942461177,2.26,228.57,228.53,5.46711695]
[1733942461484,2.26,228.57,228.54,5.46711695]
[1733942461679,2.26,228.56,228.47,10.11119245]
[1733942461978,2.26,228.56,228.48,5.46690108]
[1733942462183,2.26,228.56,228.49,5.46690108]
[1733942462390,2.26,228.56,228.51,2.1859]
[1733942462588,2.26,228.56,228.47,10.11119245]
[1733942462589,2.26,228.56,228.52,5.46690108]
[1733942462884,2.26,228.56,228.53,5.46690108]
[1733942463085,2.26,228.56,228.54,5.46690108]
[1733942463289,2.26,228.56,228.55,5.46690108]
[1733942463782,4.4455,228.56,228.55,5.46690108]
[1733942464192,2.26,228.56,228.55,5.46690108]
[1733942464485,3.64593092,228.61,228.55,5.46690108]
[1733942464683,2.1853,228.58,228.56,5.46690108]
[1733942464885,2.26,228.6,228.47,10.11119245]
[1733942465084,2.26,228.6,228.48,5.46655925]
[1733942465285,2.26,228.6,228.49,5.46655925]
[1733942465586,2.1855,228.57,228.51,2.1859]
[1733942465789,2.26,228.6,228.52,5.46655925]
[1733942465990,2.26,228.6,228.53,5.46655925]
[1733942466280,2.1855,228.57,228.54,5.46655925]
[1733942466583,2.1855,228.57,228.55,5.46655925]
[1733942466787,2.1855,228.57,228.56,5.46655925]
[1733942466987,2.1855,228.56,228.5,2.186]
[1733942467283,2.1855,228.56,228.51,11.93277246]
[1733942467486,2.1855,228.56,228.52,5.46679466]
[1733942467786,2.1855,228.56,228.53,5.46679466]
[1733942467990,2.1855,228.56,228.54,5.46679466]
[1733942468189,2.1855,228.56,228.55,5.46655839]
[1733942471889,2.26,228.6,228.55,5.46655839]
[1733942472189,2.26,228.6,228.56,5.46655839]
[1733942472385,2.26,228.6,228.57,5.46655839]
[1733942472587,2.1852,228.59,228.58,5.46655839]
[1733942472885,2.26,228.6,228.58,5.46655839]
[1733942473089,2.26,228.6,228.59,5.46655839]
[1733942474391,4.4451,228.6,228.59,5.46655839]
[1733942476783,2.1854,228.57,228.53,6.4659778]
[1733942476991,2.1854,228.57,228.54,5.46622827]
[1733942477191,2.1854,228.57,228.55,5.46622827]
[1733942477388,2.1854,228.57,228.56,5.46622827]
[1733942480090,2.26,228.6,228.53,6.4659778]
[1733942480397,2.1855,228.56,228.53,6.4659778]
[1733942480591,2.1855,228.56,228.54,5.46623091]
[1733942480792,2.1855,228.56,228.55,5.46623091]
[1733942481286,2.1854,228.57,228.55,11.93220871]
[1733942481491,2.1854,228.57,228.56,5.46623091]
[1733942483096,8.6513778,228.57,228.56,3.26823091]
[1733942483286,6.4659778,228.57,228.46,6.4659778]
[1733942483488,6.4659778,228.54,228.46,6.4659778]
[1733942483795,8.7259778,228.54,228.46,6.4659778]
[1733942483997,2.1861,228.5,228.46,6.4659778]
[1733942484395,2.1862,228.49,228.46,6.4659778]
[1733942484790,2.1862,228.49,228.4,3.5927]
[1733942484791,6.4659778,228.48,228.37,2.26]
[1733942484997,6.4659778,228.48,228.4,5.23481073]
[1733942485398,2.1868,228.43,228.4,5.23481073]
[1733942485592,6.4659778,228.48,228.4,11.70078853]
[1733942485997,2.1868,228.43,228.4,11.70078853]
[1733942486196,2.1868,228.43,228.42,6.4659778]
[1733942487095,6.4659778,228.48,228.4,5.23481073]
[1733942487301,6.4659778,228.46,228.4,5.23481073]
[1733942488002,2.1866,228.45,228.4,11.70078853]
[1733942488202,2.1866,228.45,228.4,5.23481073]
[1733942488900,2.1866,228.45,228.4,11.70078853]
[1733942489803,6.4659778,228.48,228.34,2.7795]
[1733942489804,8.7259778,228.44,228.34,2.7795]
[1733942490103,2.1869,228.42,228.36,8.6533778]
[1733942490504,2.26,228.43,228.36,8.6533778]
[1733942491096,2.26,228.43,228.38,8.6530778]
[1733942491302,2.26,228.47,228.4,6.4659778]
[1733942491493,6.4659778,228.49,228.4,6.4659778]
[1733942491699,6.4659778,228.49,228.44,6.4659778]
[1733942491700,2.26,228.49,228.44,6.4659778]
[1733942492096,2.1863,228.48,228.43,2.1867]
[1733942492295,6.4659778,228.48,228.4,6.4659778]
[1733942492797,6.4659778,228.48,228.4,8.6528778]
[1733942492798,2.1864,228.46,228.4,8.6528778]
[1733942493098,2.1864,228.46,228.4,6.4659778]
[1733942493295,6.4659778,228.46,228.36,7.46521216]
[1733942493605,6.4659778,228.48,228.39,6.4659778]
[1733942493800,6.4659778,228.48,228.41,6.4659778]
[1733942494594,2.1866,228.45,228.41,6.4659778]
[1733942496007,2.1866,228.45,228.41,8.6528778]
[1733942496196,2.1866,228.45,228.41,2.1869]
[1733942496801,2.1864,228.46,228.41,2.1869]
[1733942497102,2.26,228.49,228.42,2.1867]
[1733942497498,2.1864,228.47,228.42,2.1867]
[1733942497997,8.7259778,228.49,228.44,2.1866]
[1733942498803,2.1863,228.48,228.42,2.1867]
[1733942499001,6.4659778,228.47,228.42,2.1867]
[1733942499197,2.1863,228.48,228.41,6.4659778]
[1733942499400,6.4659778,228.47,228.36,7.46521216]
[1733942499597,6.4659778,228.47,228.39,6.4659778]
[1733942500510,2.1866,228.45,228.4,2.187]
[1733942500707,6.4659778,228.43,228.36,5.20521216]
[1733942500903,8.7259778,228.43,228.36,5.20521216]
[1733942501110,2.1869,228.41,228.36,5.20521216]
[1733942501405,8.7259778,228.43,228.36,5.20521216]
[1733942501612,2.187,228.4,228.36,5.20521216]
[1733942501907,8.7259778,228.43,228.36,7.39261216]
[1733942502302,2.26,228.43,228.36,7.39261216]
[1733942502504,8.7259778,228.43,228.36,7.39261216]
[1733942502706,2.1869,228.41,228.36,7.39261216]
[1733942503009,8.7259778,228.43,228.36,7.39261216]
[1733942503213,6.4659778,228.41,228.34,3.5808]
[1733942503714,6.4659778,228.39,228.31,6.4659778]
[1733942504013,2.26,228.38,228.31,6.4659778]
[1733942504913,2.26,228.38,228.33,6.4659778]
[1733942505409,2.26,228.38,228.35,2.1874]
[1733942506812,2.26,228.38,228.33,6.4659778]
[1733942506813,2.26,228.38,228.36,2.1874]
[1733942507105,2.26,228.38,228.33,6.4659778]
[1733942507511,2.26,228.38,228.35,2.1875]
[1733942508011,2.26,228.38,228.36,2.1874]
[1733942508311,2.26,228.38,228.33,6.4659778]
[1733942508716,2.26,228.38,228.35,2.1874]
[1733942511212,2.26,228.38,228.33,6.4659778]
[1733942511414,2.1874,228.37,228.33,6.4659778]
[1733942512618,2.1874,228.37,228.33,8.6536778]
[1733942514111,2.26,228.38,228.33,6.4659778]
[1733942514313,2.26,228.38,228.31,5.17185017]
[1733942514510,2.26,228.38,228.34,6.4659778]
[1733942514709,2.26,228.38,228.37,2.1873]
[1733942514914,1.4493,228.48,228.36,6.4659778]
[1733942515214,1.4493,228.48,228.32,2.26]
[1733942515215,6.4659778,228.45,228.32,3.6882]
[1733942515414,2.1866,228.44,228.38,6.4659778]
[1733942515614,29.78558887,228.51,228.42,6.4659778]
[1733942515818,6.4659778,228.49,228.42,6.4659778]
[1733942516017,2.26,228.49,228.42,6.4659778]
[1733942516311,38.51156667,228.51,228.42,6.4659778]
[1733942516710,2.26,228.5,228.42,6.4659778]
[1733942517114,2.1863,228.48,228.44,2.1866]
[1733942517720,2.1863,228.48,228.45,2.1865]
[1733942517918,2.1862,228.49,228.45,2.1865]
[1733942518317,2.26,228.5,228.45,2.1865]
[1733942518717,2.26,228.5,228.43,6.4659778]
[1733942518922,2.26,228.5,228.46,2.1864]
[1733942519622,4.4461,228.5,228.46,2.1864]
[1733942519919,2.1861,228.5,228.46,2.1864]
[1733942520321,2.1861,228.5,228.45,8.6524778]
[1733942522826,2.26,228.52,228.45,6.4659778]
[1733942523123,6.4659778,228.56,228.49,6.4659778]
[1733942523321,2.26,228.56,228.49,6.4659778]
[1733942523625,2.26,228.56,228.51,6.4659778]
[1733942523825,2.26,228.56,228.52,2.1858]
[1733942524027,2.26,228.56,228.51,6.4659778]
[1733942524225,2.26,228.56,228.49,6.4659778]
[1733942524423,2.1857,228.54,228.5,2.186]
[1733942524728,2.1857,228.54,228.49,6.4659778]
[1733942524729,8.7259778,228.56,228.49,6.4659778]
[1733942524924,8.7259778,228.56,228.51,2.1859]
[1733942524925,4.4456,228.56,228.51,2.1859]
[1733942525125,2.26,228.56,228.51,6.4659778]
[1733942525428,2.26,228.56,228.53,2.1857]
[1733942526223,2.1854,228.58,228.54,2.1856]
[1733942527525,3.6854,228.61,228.54,2.1856]
[1733942527730,2.1852,228.59,228.54,2.1856]
[1733942528629,2.1851,228.61,228.57,6.4659778]
[1733942528827,2.24,228.64,228.57,6.4659778]
[1733942529031,2.24,228.64,228.59,6.4659778]
[1733942529230,2.24,228.64,228.61,6.4659778]
[1733942530020,2.1846,228.66,228.62,2.1849]
[1733942530420,2.1846,228.66,228.61,6.4659778]
[1733942530623,2.1846,228.66,228.62,5.46459223]
[1733942530829,2.1846,228.66,228.61,6.4659778]
[1733942531023,2.1846,228.66,228.62,5.46451637]
[1733942531231,2.1846,228.66,228.61,6.4659778]
[1733942531535,2.1847,228.65,228.62,5.46451034]
[1733942531733,2.1847,228.65,228.59,6.4659778]
[1733942531929,2.1847,228.65,228.61,6.4659778]
[1733942533634,2.1847,228.65,228.61,8.6509778]
[1733942534835,2.1847,228.64,228.61,6.4659778]
[1733942535332,6.4659778,228.68,228.61,6.4659778]
[1733942536731,2.1846,228.65,228.61,6.4659778]
[1733942539033,2.1846,228.65,228.61,8.6509778]
[1733942540332,6.4659778,228.66,228.55,4.2765]
[1733942540530,6.4659778,228.64,228.56,11.93058466]
[1733942540730,2.1852,228.6,228.57,5.46460686]
[1733942540936,2.1852,228.6,228.56,6.4659778]
[1733942541330,2.1852,228.6,228.57,5.46466115]
[1733942541634,2.1852,228.6,228.56,8.6514778]
[1733942541932,2.1852,228.59,228.56,8.6514778]
[1733942542128,8.7059778,228.64,228.58,6.4659778]
[1733942542333,8.7059778,228.64,228.58,8.6512778]
[1733942542734,2.185,228.62,228.58,8.6512778]
[1733942543738,8.7059778,228.64,228.58,6.4659778]
[1733942543931,8.7059778,228.64,228.57,5.32654298]
[1733942544129,6.4659778,228.62,228.57,5.32654298]
[1733942544334,2.1855,228.56,228.52,8.6517778]
[1733942544543,2.1855,228.56,228.53,5.4657844]
[1733942544737,2.1855,228.56,228.54,5.23776604]
[1733942545239,6.4659778,228.6,228.54,11.70374384]
[1733942545444,6.4659778,228.62,228.54,11.70374384]
[1733942546239,2.1853,228.59,228.54,13.88944384]
[1733942546638,6.4659778,228.62,228.54,13.88944384]
[1733942546836,2.1851,228.6,228.54,13.88944384]
[1733942547143,7.7866778,228.63,228.55,2.1855]
[1733942547641,2.1852,228.6,228.55,2.1855]
[1733942548841,7.7866778,228.63,228.55,2.1855]
[1733942549036,2.1852,228.59,228.55,2.1855]
[1733942550340,2.1852,228.59,228.54,11.70374384]
[1733942550540,2.1852,228.59,228.55,5.46567062]
[1733942550745,2.1852,228.59,228.54,11.70374384]
[1733942551043,2.1852,228.59,228.55,5.46566885]
[1733942551343,2.1852,228.59,228.54,11.70374384]
[1733942551541,2.1852,228.59,228.55,5.46579316]
[1733942551841,2.1852,228.59,228.55,2.1856]
[1733942552446,2.1852,228.59,228.56,5.46567455]
[1733942552646,2.1853,228.58,228.55,2.1856]
[1733942552837,2.1853,228.58,228.56,5.46565378]
[1733942553039,2.1853,228.58,228.55,2.1856]
[1733942553235,2.1853,228.58,228.56,5.46565378]
[1733942553442,2.1853,228.58,228.55,2.1856]
[1733942553641,2.1853,228.58,228.56,5.46567571]
[1733942553834,2.1853,228.58,228.55,2.1856]
[1733942554041,2.1853,228.58,228.56,5.46569763]
[1733942554243,2.1853,228.58,228.55,2.1856]
[1733942554444,2.1853,228.58,228.56,5.46569841]
[1733942554645,2.1853,228.58,228.55,2.1856]
[1733942554846,2.1853,228.58,228.56,5.46569841]
[1733942555047,2.1853,228.58,228.57,5.46569841]
[1733942555341,2.1853,228.58,228.55,2.1856]
[1733942555544,2.1853,228.58,228.56,5.46586252]
[1733942555847,2.1853,228.58,228.57,5.46579674]
[1733942556248,2.1851,228.6,228.57,5.46579674]
[1733942556546,182.180988,228.7,228.58,5.46579674]
[1733942556547,2.24,228.64,228.58,5.46579674]
[1733942556748,8.7059778,228.65,228.59,5.46579674]
[1733942556941,8.7059778,228.65,228.58,6.4659778]
[1733942557145,8.7059778,228.65,228.59,5.46522736]
[1733942557339,8.7059778,228.65,228.6,5.46511776]
[1733942557544,8.7059778,228.65,228.58,6.4659778]
[1733942557748,6.4659778,228.63,228.59,5.46511776]
[1733942557938,6.4659778,228.64,228.6,5.46511776]
[1733942558137,8.6506778,228.64,228.6,2.1851]
[1733942558346,8.6506778,228.64,228.61,5.46511482]
[1733942558643,2.1847,228.64,228.6,2.1851]
[1733942558943,2.1847,228.64,228.61,5.46499682]
[1733942559149,2.1847,228.64,228.6,2.1851]
[1733942559345,2.1847,228.64,228.61,5.46499666]
[1733942559544,2.1847,228.64,228.62,5.46499666]
[1733942559845,2.1847,228.64,228.63,5.46499666]
[1733942560044,2.24,228.65,228.63,5.46499666]
[1733942560348,2.24,228.65,228.64,5.46499666]
[1733942561747,4.4247,228.65,228.64,5.46499666]
[1733942562749,2.1847,228.65,228.64,5.46499666]
[1733942563048,4.4245,228.67,228.64,5.46499666]
[1733942563248,6.4659778,228.68,228.65,5.46499666]
[1733942563249,8.7059778,228.68,228.65,5.46499666]
[1733942563450,8.7059778,228.68,228.66,5.46499666]
[1733942563653,10.8902778,228.68,228.67,5.46499666]
[1733942564148,8.7059778,228.68,228.62,6.4659778]
[1733942564352,2.1845,228.67,228.63,2.1848]
[1733942567649,4.4243,228.69,228.65,2.1846]
[1733942568555,4.4243,228.69,228.64,6.4659778]
[1733942568556,4.4243,228.69,228.66,2.1845]
[1733942568756,2.1843,228.69,228.66,2.1845]
[1733942569757,2.1841,228.7,228.66,2.1845]
[1733942569957,6.4659778,228.71,228.65,2.1846]
[1733942570257,6.4659778,228.71,228.66,5.46361681]
[1733942570550,6.4659778,228.71,228.67,5.46361681]
[1733942570755,6.4659778,228.71,228.68,5.46361681]
[1733942570953,6.4659778,228.71,228.69,5.46361681]
[1733942571156,8.6499778,228.71,228.7,5.46361681]
[1733942571458,1.4018,228.75,228.66,6.4659778]
[1733942571660,2.1842,228.7,228.66,8.6504778]
[1733942571854,2.1842,228.7,228.67,5.46360969]
[1733942572054,7.8677778,228.75,228.68,11.92958749]
[1733942572357,7.8677778,228.75,228.69,5.46360969]
[1733942572358,10.1077778,228.75,228.69,5.46360969]
[1733942572555,10.1077778,228.75,228.7,5.46360969]
[1733942572859,1.3436,228.76,228.71,5.46360969]
[1733942573061,6.4659778,228.75,228.72,5.46360969]
[1733942573259,6.4659778,228.75,228.73,5.46360969]
[1733942573454,2.1839,228.73,228.69,2.1842]
[1733942573654,2.1839,228.73,228.7,5.46278211]
[1733942573850,2.1839,228.73,228.71,5.46278211]
[1733942574051,2.1839,228.73,228.72,5.46278211]
[1733942575055,2.1838,228.74,228.72,5.46278211]
[1733942575257,2.1838,228.74,228.73,5.46278211]